fUSD/lending_fUSD_20240521
["ID","MTS","AMOUNT","RATE_DAILY","PERIOD"]
[327615158,1716253761769,-241.53,0.00020447,2]
[327615159,1716253761790,-210.0,0.00021396,2]
[327615160,1716253761811,-241.53,0.00026921,2]
[327615161,1716253761830,-153.02360342,0.00027803,2]
[327615162,1716253761851,-1481.71970581,0.00030831,4]
[327615163,1716253761871,-181.271545,0.00030832,2]
[327615164,1716253761891,-485.446123,0.00030832,2]
[327615165,1716253761912,-165.288311,0.00030832,2]
[327615166,1716253761932,-183.916938,0.00030832,2]
[327615167,1716253761953,-1038.294522,0.00030832,2]
[327615168,1716253761973,-164.987135,0.00030832,2]
[327615169,1716253761993,-485.446123,0.00030832,2]
[327615170,1716253762012,-165.288311,0.00030832,2]
[327615171,1716253762031,-1038.294521,0.00030832,2]
[327615172,1716253762053,-164.987135,0.00030832,2]
[327615173,1716253762073,-303.668445,0.00030832,2]
[327615174,1716253762093,-1542.729639,0.00030832,2]
[327615175,1716253762115,-159.86492,0.00030832,2]
[327615176,1716253762134,-1542.729639,0.00030832,2]
[327615177,1716253762153,-303.668444,0.00030832,2]
[327615178,1716253762174,-159.86492,0.00030832,2]
[327615179,1716253762194,-485.446123,0.00031218,2]
[327615180,1716253762215,-1038.294522,0.00031218,2]
[327615181,1716253762235,-164.987135,0.00031218,2]
[327615182,1716253762257,-485.446123,0.00031218,2]
[327615183,1716253762278,-1038.294521,0.00031218,2]
[327615184,1716253762300,-164.987135,0.00031218,2]
[327615185,1716253762320,-303.668445,0.00031218,2]
[327615186,1716253762342,-1542.729639,0.00031218,2]
[327615187,1716253762366,-159.86492,0.00031218,2]
[327615188,1716253762388,-1542.729639,0.00031218,2]
[327615189,1716253762409,-303.668444,0.00031218,2]
[327615190,1716253762429,-159.86492,0.00031218,2]
[327615191,1716253762450,-151.91,0.00031332,2]
[327615192,1716253762470,-4599.0,0.000315,4]
[327615193,1716253762491,-485.446123,0.00031603,2]
[327615194,1716253762510,-1038.294522,0.00031603,2]
[327615195,1716253762530,-164.987135,0.00031603,2]
[327615196,1716253762550,-485.446123,0.00031603,2]
[327615197,1716253762570,-1038.294521,0.00031603,2]
[327615198,1716253762589,-164.987135,0.00031603,2]
[327615199,1716253762611,-303.668445,0.00031603,2]
[327615200,1716253762630,-1542.729639,0.00031603,2]
[327615201,1716253762649,-159.86492,0.00031603,2]
[327615202,1716253762671,-1542.729639,0.00031603,2]
[327615203,1716253762692,-303.668444,0.00031603,2]
[327615204,1716253762715,-159.86492,0.00031603,2]
[327615205,1716253762734,-485.446123,0.00031988,2]
[327615206,1716253762755,-1038.294522,0.00031988,2]
[327615207,1716253762777,-164.987135,0.00031988,2]
[327615208,1716253762798,-485.446123,0.00031988,2]
[327615209,1716253762818,-1038.294521,0.00031988,2]
[327615210,1716253762838,-164.987135,0.00031988,2]
[327615211,1716253762859,-303.668445,0.00031988,2]
[327615212,1716253762880,-1542.729639,0.00031988,2]
[327615213,1716253762900,-159.86492,0.00031988,2]
[327615214,1716253762920,-1542.729639,0.00031988,2]
[327615215,1716253762940,-303.668444,0.00031988,2]
[327615216,1716253762960,-159.86492,0.00031988,2]
[327615217,1716253762980,-485.446123,0.00032374,2]
[327615218,1716253763001,-1038.294522,0.00032374,2]
[327615219,1716253763022,-164.987135,0.00032374,2]
[327615220,1716253763042,-485.446123,0.00032374,2]
[327615221,1716253763062,-1038.294521,0.00032374,2]
[327615222,1716253763087,-164.987135,0.00032374,2]
[327615223,1716253763110,-303.668445,0.00032374,2]
[327615224,1716253763132,-1542.729639,0.00032374,2]
[327615225,1716253763152,-159.86492,0.00032374,2]
[327615226,1716253763173,-1542.729639,0.00032374,2]
[327615227,1716253763194,-303.668444,0.00032374,2]
[327615228,1716253763214,-159.86492,0.00032374,2]
[327615229,1716253763236,-155.25271234,0.00032933,7]
[327615230,1716253763255,-200.0,0.00033052,2]
[327615231,1716253763276,-1874.70104408,0.00033111,120]
[327615232,1716253765195,-125.29895592,0.00033111,120]
[327615233,1716253765217,-250.0,0.00033121,115]
[327615234,1716253765239,-1169.49,0.00033222,2]
[327615235,1716253765260,-250.0,0.00033253,2]
[327615236,1716253765284,-241.53,0.00033396,2]
[327615237,1716253765307,-204.45,0.000335,2]
[327615238,1716253765329,-204.45,0.000335,2]
[327615239,1716253765354,-204.45,0.000335,2]
[327615240,1716253765376,-204.45,0.000335,2]
[327615241,1716253765399,-204.45,0.000335,2]
[327615242,1716253765421,-204.45,0.000335,2]
[327615243,1716253765442,-204.45,0.000335,2]
[327615244,1716253765464,-204.45,0.000335,2]
[327615245,1716253765487,-204.45,0.000335,2]
[327615246,1716253765510,-204.45,0.000335,2]
[327615247,1716253765532,-204.45,0.000335,2]
[327615248,1716253765555,-204.45,0.000335,2]
[327615249,1716253765577,-204.45,0.000335,2]
[327615250,1716253765604,-204.45,0.000335,2]
[327615251,1716253765626,-204.45,0.000335,2]
[327615252,1716253765652,-204.45,0.000335,2]
[327615253,1716253765678,-204.45,0.000335,2]
[327615254,1716253765701,-204.45,0.000335,2]
[327615255,1716253765724,-204.45,0.000335,2]
[327615256,1716253765746,-204.45,0.000335,2]
[327615257,1716253765768,-159.84,0.00033504,120]
[327615258,1716253765789,-500.0,0.00033536,2]
[327615259,1716253765810,-4411.60935003,0.00033887,2]
[327615260,1716253765831,-158.46,0.00034196,120]
[327615261,1716253765858,-151.15,0.00034245,2]
[327615262,1716253765880,-1000.0,0.00034569,2]
[327615266,1716253769127,155.67,0.00013973,2]
[327615267,1716253769368,155.67,0.00031546,2]
[327615271,1716253795521,151.0,0.00035,14]
[327615272,1716253805176,2000.0,0.00035,2]
[327615273,1716253808295,200.0,0.00035,2]
[327615274,1716253814564,1542.729639,0.00030832,2]
[327615275,1716253814944,303.668445,0.00030832,2]
[327615276,1716253814976,1542.729639,0.00031218,2]
[327615277,1716253815329,303.668445,0.00031218,2]
[327615278,1716253815357,1542.729639,0.00031603,2]
[327615279,1716253815645,303.668445,0.00031603,2]
[327615280,1716253816153,303.668445,0.00031988,2]
[327615281,1716253816338,1542.729639,0.00031988,2]
[327615282,1716253816511,303.668445,0.00032374,2]
[327615283,1716253816766,1542.729639,0.00032374,2]
[327615284,1716253823802,159.86492,0.00030832,2]
[327615285,1716253824797,159.86492,0.00031218,2]
[327615286,1716253825199,159.86492,0.00031603,2]
[327615287,1716253825565,159.86492,0.00031988,2]
[327615288,1716253825900,159.86492,0.00032374,2]
[327615289,1716253832134,-427.34999358,0.00033905,2]
[327615290,1716253832147,-367.39999985,0.00033905,2]
[327615291,1716253832161,-490.0,0.00033905,2]
[327615293,1716253832174,-423.02988,0.00033905,2]
[327615296,1716253832188,-378.73,0.00033905,2]
[327615298,1716253832200,-1163.49012657,0.00033905,2]
[327615300,1716253832210,-6114.96325739,0.00033905,2]
[327615301,1716253832225,-316.5,0.00033905,2]
[327615302,1716253832237,-1037.08295783,0.00033905,2]
[327615303,1716253832249,-5737.5,0.00033905,2]
[327615304,1716253832260,-5380.79283856,0.00033905,2]
[327615305,1716253832272,-4676.16094522,0.00033905,2]
[327615306,1716253832281,-1864.9408879,0.00033905,30]
[327615307,1716253832403,-19947.0959021,0.00033905,30]
[327615308,1716253832412,-150.0,0.00035616,2]
[327615309,1716253832422,-895.0,0.0003589,16]
[327615310,1716253832432,-1169.49,0.00035962,2]
[327615311,1716253832442,-204.45,0.000363,3]
[327615312,1716253832452,-204.45,0.000363,3]
[327615313,1716253832462,-204.45,0.000363,3]
[327615314,1716253832472,-204.45,0.000363,3]
[327615315,1716253832483,-204.45,0.000363,3]
[327615316,1716253832493,-204.45,0.000363,3]
[327615317,1716253832503,-204.45,0.000363,3]
[327615318,1716253832512,-204.45,0.000363,3]
[327615319,1716253832522,-204.45,0.000363,3]
[327615320,1716253832532,-204.45,0.000363,3]
[327615321,1716253832541,-204.45,0.000363,3]
[327615322,1716253832551,-204.45,0.000363,3]
[327615323,1716253832561,-204.45,0.000363,3]
[327615325,1716253832571,-204.45,0.000363,3]
[327615327,1716253832581,-204.45,0.000363,3]
[327615329,1716253832591,-204.45,0.000363,3]
[327615331,1716253832600,-204.45,0.000363,3]
[327615332,1716253832610,-204.45,0.000363,3]
[327615334,1716253832619,-204.45,0.000363,3]
[327615336,1716253832629,-204.45,0.000363,3]
[327615338,1716253832639,-1396.094,0.000363,2]
[327615339,1716253832649,-150.0,0.00036554,2]
[327615340,1716253832664,-180.0,0.00036579,2]
[327615341,1716253832674,-5131.0,0.00036887,2]
[327615342,1716253832684,-5754.0,0.00036887,2]
[327615343,1716253832696,-289.0,0.00036887,2]
[327615344,1716253832709,-1464.0,0.00036887,2]
[327615345,1716253832718,-192.73,0.0003692,10]
[327615346,1716253832727,-37876.0,0.0003693,2]
[327615347,1716253832736,-150.0,0.00037491,2]
[327615348,1716253832746,-157.54,0.00038027,30]
[327615349,1716253832756,-1019.74368617,0.00038126,5]
[327615350,1716253832765,-5364.858,0.00038156,2]
[327615351,1716253832777,-210.5951,0.00038156,2]
[327615353,1716253832787,-204.2097287,0.00038156,2]
[327615354,1716253832798,-7498.2291934,0.00038156,2]
[327615355,1716253832808,-3218.85075424,0.00038241,2]
[327615356,1716253832818,-3218.85075424,0.00038245,2]
[327615357,1716253832828,-170.73,0.00038246,3]
[327615358,1716253832838,-231.28,0.00038246,10]
[327615359,1716253832848,-3218.85075424,0.00038249,2]
[327615360,1716253832858,-3218.85075424,0.00038252,2]
[327615361,1716253832868,-1000.0,0.00038256,2]
[327615362,1716253832877,-10349.8897,0.00038256,2]
[327615363,1716253832888,-7500.0,0.00038256,2]
[327615364,1716253832898,-2000.0,0.00038256,120]
[327615365,1716253832910,-1271.4099,0.00038256,2]
[327615366,1716253832920,-20000.0,0.00038256,120]
[327615367,1716253832929,-1587.15228477,0.00038256,11]
[327615368,1716253832939,-197.88958084,0.00038256,2]
[327615369,1716253832950,-180.30626958,0.00038256,2]
[327615370,1716253832960,-3218.85075424,0.00038256,2]
[327615371,1716253832970,-1586.59162555,0.00038256,2]
[327615372,1716253832980,-386.34993037,0.00038256,13]
[327615373,1716253832990,-191.4794949,0.00038256,11]
[327615374,1716253833000,-3041.59142098,0.00038319,4]
[327615375,1716253833010,-181.49625515,0.00038346,2]
[327615376,1716253833020,-204.20972862,0.0003835,2]
[327615377,1716253833030,-7498.22919335,0.0003835,2]
[327615378,1716253833040,-1154.81686333,0.00038354,2]
[327615379,1716253833050,-10935.71301561,0.00038354,4]
[327615380,1716253833060,-652.52149548,0.00038354,4]
[327615381,1716253833069,-527.04937464,0.00038354,4]
[327615382,1716253833079,-441.10469184,0.00038354,4]
[327615383,1716253833088,-801.85633091,0.00038354,4]
[327615384,1716253833098,-155.83091661,0.00038354,4]
[327615385,1716253833109,-2711.61305631,0.00038354,4]
[327615386,1716253833118,-5000.0,0.00038354,7]
[327615387,1716253833128,-493.20336237,0.00038354,4]
[327615388,1716253833137,-1000.0,0.00038354,4]
[327615389,1716253833148,-362.2253787,0.00038354,4]
[327615390,1716253833160,-156.58353072,0.00038354,4]
[327615391,1716253833169,-206.68381839,0.00038354,3]
[327615392,1716253833258,-300.0,0.00038354,7]
[327615393,1716253833268,-1481.71970581,0.00038354,4]
[327615394,1716253833278,-499.70242659,0.00038354,4]
[327615395,1716253833287,-1650.0,0.00038355,4]
[327615396,1716253833296,-19624.9327953,0.00038355,2]
[327615397,1716253833305,-500.0,0.00038356,6]
[327615398,1716253833314,-729.72,0.00038356,6]
[327615399,1716253833325,-500.0,0.00038356,6]
[327615400,1716253833334,-500.0,0.00038356,6]
[327615401,1716253833343,-500.0,0.00038356,6]
[327615402,1716253833353,-500.0,0.00038356,6]
[327615403,1716253833362,-766.38,0.00038356,6]
[327615404,1716253833372,-262.05626811,0.00038356,6]
[327615405,1716253833381,-500.0,0.00038356,6]
[327615406,1716253833391,-500.0,0.00038356,6]
[327615407,1716253833400,-500.0,0.00038356,6]
[327615408,1716253833417,-895.18,0.00038356,6]
[327615409,1716253833426,-500.0,0.00038356,6]
[327615410,1716253833435,-500.0,0.00038356,6]
[327615411,1716253833444,-500.0,0.00038356,6]
[327615412,1716253833455,-500.0,0.00038356,6]
[327615413,1716253833464,-500.0,0.00038356,6]
[327615414,1716253833473,-216.75313844,0.00038356,6]
[327615415,1716253833483,-835.51,0.00038356,6]
[327615416,1716253833492,-500.0,0.00038356,6]
[327615417,1716253833501,-719.52,0.00038356,6]
[327615418,1716253833513,-500.0,0.00038356,6]
[327615419,1716253833523,-500.0,0.00038356,6]
[327615420,1716253833533,-500.0,0.00038356,6]
[327615421,1716253833542,-530.42,0.00038356,6]
[327615422,1716253833551,-500.0,0.00038356,6]
[327615423,1716253833561,-500.0,0.00038356,6]
[327615424,1716253833570,-500.0,0.00038356,6]
[327615425,1716253833580,-500.0,0.00038356,6]
[327615426,1716253833589,-500.0,0.00038356,6]
[327615427,1716253833600,-500.0,0.00038356,2]
[327615428,1716253833610,-500.0,0.00038356,6]
[327615429,1716253833619,-726.68,0.00038356,6]
[327615430,1716253833629,-500.0,0.00038356,6]
[327615431,1716253833639,-500.0,0.00038356,6]
[327615432,1716253833648,-500.0,0.00038356,6]
[327615433,1716253833662,-500.0,0.00038356,6]
[327615434,1716253833671,-500.0,0.00038356,6]
[327615435,1716253833680,-512.48120065,0.00038356,6]
[327615436,1716253833689,-722.91,0.00038356,6]
[327615437,1716253833705,-500.0,0.00038356,6]
[327615438,1716253833714,-500.0,0.00038356,6]
[327615439,1716253833725,-500.0,0.00038356,6]
[327615440,1716253833735,-500.0,0.00038356,6]
[327615441,1716253833748,-500.0,0.00038356,6]
[327615442,1716253833757,-500.0,0.00038356,6]
[327615443,1716253833766,-500.0,0.00038356,6]
[327615444,1716253833775,-500.0,0.00038356,6]
[327615445,1716253833786,-500.0,0.00038356,6]
[327615446,1716253833796,-511.94,0.00038356,6]
[327615447,1716253833805,-500.0,0.00038356,2]
[327615448,1716253833815,-525.71408206,0.00038356,6]
[327615449,1716253833824,-500.0,0.00038356,6]
[327615450,1716253833833,-500.0,0.00038356,6]
[327615451,1716253833842,-500.0,0.00038356,6]
[327615452,1716253833852,-500.0,0.00038356,6]
[327615453,1716253833861,-929.33,0.00038356,6]
[327615454,1716253833871,-1098.38,0.00038356,6]
[327615455,1716253833880,-500.0,0.00038356,6]
[327615456,1716253833890,-500.0,0.00038356,6]
[327615457,1716253833900,-585.09,0.00038356,6]
[327615458,1716253833911,-500.0,0.00038356,6]
[327615459,1716253833920,-896.9,0.00038356,6]
[327615460,1716253833929,-656.21,0.00038356,6]
[327615461,1716253833938,-500.0,0.00038356,6]
[327615462,1716253833947,-500.0,0.00038356,6]
[327615463,1716253833956,-500.0,0.00038356,6]
[327615464,1716253833965,-713.2,0.00038356,6]
[327615465,1716253833975,-677.93,0.00038356,6]
[327615466,1716253833984,-500.0,0.00038356,6]
[327615467,1716253833993,-654.42,0.00038356,6]
[327615468,1716253834003,-500.0,0.00038356,6]
[327615469,1716253834012,-500.0,0.00038356,6]
[327615470,1716253834023,-500.0,0.00038356,6]
[327615471,1716253834033,-500.0,0.00038356,6]
[327615472,1716253834043,-500.0,0.00038356,6]
[327615473,1716253834052,-601.35,0.00038356,6]
[327615474,1716253834062,-580.65,0.00038356,6]
[327615475,1716253834072,-500.0,0.00038356,6]
[327615476,1716253834082,-737.96,0.00038356,6]
[327615477,1716253834091,-714.29,0.00038356,6]
[327615478,1716253834101,-573.31487225,0.00038356,6]
[327615479,1716253834110,-500.0,0.00038356,6]
[327615480,1716253834119,-655.63,0.00038356,6]
[327615481,1716253834129,-504.94892508,0.00038356,6]
[327615482,1716253834139,-597.09,0.00038356,6]
[327615483,1716253834149,-500.0,0.00038356,6]
[327615484,1716253834161,-500.0,0.00038356,6]
[327615485,1716253834170,-500.0,0.00038356,6]
[327615486,1716253834180,-500.0,0.00038356,6]
[327615487,1716253834189,-500.0,0.00038356,6]
[327615488,1716253834199,-500.0,0.00038356,6]
[327615489,1716253834208,-500.0,0.00038356,6]
[327615490,1716253834218,-500.0,0.00038356,6]
[327615491,1716253834227,-500.0,0.00038356,6]
[327615492,1716253834236,-500.0,0.00038356,6]
[327615493,1716253834246,-500.0,0.00038356,6]
[327615494,1716253834256,-504.14641482,0.00038356,6]
[327615495,1716253834265,-500.0,0.00038356,6]
[327615496,1716253834275,-500.0,0.00038356,6]
[327615497,1716253834284,-846.95,0.00038356,6]
[327615498,1716253834294,-503.95358985,0.00038356,6]
[327615499,1716253834303,-500.0,0.00038356,6]
[327615500,1716253834312,-500.0,0.00038356,6]
[327615501,1716253834321,-500.0,0.00038356,6]
[327615502,1716253834331,-529.43990547,0.00038356,6]
[327615503,1716253834340,-500.0,0.00038356,6]
[327615504,1716253834350,-624.22,0.00038356,6]
[327615505,1716253834361,-766.13,0.00038356,6]
[327615506,1716253834370,-500.0,0.00038356,6]
[327615507,1716253834381,-508.28592728,0.00038356,6]
[327615508,1716253834390,-500.0,0.00038356,6]
[327615509,1716253834400,-500.0,0.00038356,6]
[327615510,1716253834412,-848.1,0.00038356,6]
[327615511,1716253834421,-941.22,0.00038356,6]
[327615512,1716253834431,-500.0,0.00038356,6]
[327615513,1716253834441,-730.95,0.00038356,6]
[327615514,1716253834450,-725.79,0.00038356,6]
[327615515,1716253834459,-500.0,0.00038356,6]
[327615516,1716253834470,-500.0,0.00038356,6]
[327615517,1716253834479,-667.6,0.00038356,6]
[327615518,1716253834488,-500.0,0.00038356,6]
[327615519,1716253834498,-533.85108412,0.00038356,6]
[327615520,1716253834507,-685.07,0.00038356,6]
[327615521,1716253834516,-934.07,0.00038356,6]
[327615522,1716253834525,-500.0,0.00038356,6]
[327615523,1716253834534,-500.0,0.00038356,6]
[327615524,1716253834544,-500.0,0.00038356,6]
[327615525,1716253834553,-517.98,0.00038356,6]
[327615526,1716253834563,-500.0,0.00038356,6]
[327615527,1716253834572,-1971.67101494,0.00038356,6]
[327615528,1716253834582,-500.0,0.00038356,6]
[327615529,1716253834591,-500.0,0.00038356,6]
[327615530,1716253834600,-500.0,0.00038356,6]
[327615531,1716253834610,-500.0,0.00038356,6]
[327615532,1716253834620,-500.0,0.00038356,6]
[327615533,1716253834630,-670.21,0.00038356,6]
[327615534,1716253834639,-525.91,0.00038356,6]
[327615535,1716253834648,-282.77125221,0.00038356,6]
[327615536,1716253834660,-500.0,0.00038356,6]
[327615537,1716253834669,-500.0,0.00038356,6]
[327615538,1716253834678,-500.0,0.00038356,6]
[327615539,1716253834687,-1236.09,0.00038356,6]
[327615540,1716253834700,-500.0,0.00038356,6]
[327615541,1716253834710,-500.0,0.00038356,6]
[327615542,1716253834724,-601.18,0.00038356,6]
[327615543,1716253834734,-568.48,0.00038356,6]
[327615544,1716253834745,-500.0,0.00038356,6]
[327615545,1716253834755,-500.0,0.00038356,6]
[327615546,1716253834765,-875.14,0.00038356,6]
[327615547,1716253834774,-500.0,0.00038356,6]
[327615548,1716253834785,-427.9185134,0.00038356,6]
[327615549,1716253834796,-542.7,0.00038356,6]
[327615550,1716253834806,-500.0,0.00038356,6]
[327615551,1716253834817,-500.0,0.00038356,6]
[327615552,1716253834827,-792.2,0.00038356,6]
[327615553,1716253834836,-500.0,0.00038356,6]
[327615554,1716253834846,-500.0,0.00038356,6]
[327615555,1716253834855,-500.0,0.00038356,6]
[327615556,1716253834864,-500.0,0.00038356,6]
[327615557,1716253834873,-1037.3,0.00038356,6]
[327615558,1716253834883,-500.0,0.00038356,6]
[327615559,1716253834892,-630.75,0.00038356,6]
[327615560,1716253834902,-500.0,0.00038356,6]
[327615561,1716253834912,-500.0,0.00038356,6]
[327615562,1716253834921,-500.0,0.00038356,6]
[327615563,1716253834930,-500.0,0.00038356,6]
[327615564,1716253834940,-1653.32,0.00038356,6]
[327615565,1716253834949,-506.18408609,0.00038356,6]
[327615566,1716253834959,-500.0,0.00038356,6]
[327615567,1716253834968,-500.0,0.00038356,6]
[327615568,1716253834977,-500.0,0.00038356,6]
[327615569,1716253834986,-500.0,0.00038356,6]
[327615570,1716253834995,-529.9474768,0.00038356,6]
[327615571,1716253835004,-500.0,0.00038356,6]
[327615572,1716253835013,-500.0,0.00038356,6]
[327615573,1716253835022,-733.31,0.00038356,6]
[327615574,1716253835032,-500.0,0.00038356,6]
[327615575,1716253835041,-500.0,0.00038356,6]
[327615576,1716253835050,-1120.61,0.00038356,6]
[327615577,1716253835059,-500.0,0.00038356,6]
[327615578,1716253835069,-669.25,0.00038356,6]
[327615579,1716253835078,-500.0,0.00038356,6]
[327615580,1716253835087,-500.0,0.00038356,6]
[327615581,1716253835096,-500.0,0.00038356,6]
[327615582,1716253835105,-813.04,0.00038356,6]
[327615583,1716253835114,-500.0,0.00038356,6]
[327615584,1716253835123,-500.0,0.00038356,6]
[327615585,1716253835132,-500.0,0.00038356,6]
[327615586,1716253835142,-500.0,0.00038356,6]
[327615587,1716253835151,-1166.25,0.00038356,6]
[327615588,1716253835161,-504.64,0.00038356,6]
[327615589,1716253835170,-500.0,0.00038356,6]
[327615590,1716253835180,-500.0,0.00038356,6]
[327615591,1716253835188,-500.0,0.00038356,6]
[327615592,1716253835198,-500.0,0.00038356,6]
[327615593,1716253835207,-500.0,0.00038356,6]
[327615594,1716253835216,-500.0,0.00038356,6]
[327615595,1716253835225,-500.0,0.00038356,6]
[327615596,1716253835234,-500.0,0.00038356,6]
[327615597,1716253835243,-500.0,0.00038356,6]
[327615598,1716253835253,-500.0,0.00038356,6]
[327615599,1716253835262,-500.0,0.00038356,6]
[327615600,1716253835271,-500.0,0.00038356,6]
[327615601,1716253835280,-939.86,0.00038356,6]
[327615602,1716253835289,-500.0,0.00038356,6]
[327615603,1716253835299,-500.0,0.00038356,6]
[327615604,1716253835309,-500.0,0.00038356,6]
[327615605,1716253835318,-532.29414885,0.00038356,6]
[327615606,1716253835329,-500.0,0.00038356,6]
[327615607,1716253835338,-811.87,0.00038356,6]
[327615608,1716253835346,-694.56,0.00038356,6]
[327615609,1716253835355,-500.0,0.00038356,6]
[327615610,1716253835364,-597.24,0.00038356,6]
[327615611,1716253835373,-500.0,0.00038356,6]
[327615612,1716253835383,-513.05178757,0.00038356,6]
[327615613,1716253835392,-1871.88,0.00038356,6]
[327615614,1716253835401,-500.0,0.00038356,6]
[327615615,1716253835414,-1019.6,0.00038356,6]
[327615616,1716253835423,-512.75839637,0.00038356,6]
[327615617,1716253835431,-500.0,0.00038356,6]
[327615618,1716253835441,-500.0,0.00038356,6]
[327615619,1716253835450,-500.0,0.00038356,6]
[327615620,1716253835459,-744.65,0.00038356,6]
[327615621,1716253835469,-522.04687139,0.00038356,6]
[327615622,1716253835478,-500.0,0.00038356,6]
[327615623,1716253835489,-500.0,0.00038356,6]
[327615624,1716253835500,-500.0,0.00038356,6]
[327615625,1716253835509,-500.0,0.00038356,6]
[327615626,1716253835519,-1369.96,0.00038356,6]
[327615627,1716253835528,-181.22530883,0.00038356,6]
[327615628,1716253835538,-635.95,0.00038356,6]
[327615629,1716253835547,-500.0,0.00038356,6]
[327615630,1716253835556,-1436.54,0.00038356,6]
[327615631,1716253835565,-500.0,0.00038356,6]
[327615632,1716253835576,-2112.37,0.00038356,6]
[327615633,1716253835585,-871.55,0.00038356,6]
[327615634,1716253835595,-1477.59,0.00038356,6]
[327615635,1716253835604,-500.0,0.00038356,6]
[327615636,1716253835614,-500.0,0.00038356,6]
[327615637,1716253835623,-887.0,0.00038356,6]
[327615638,1716253835632,-827.16,0.00038356,6]
[327615639,1716253835641,-500.0,0.00038356,6]
[327615640,1716253835650,-400.74332752,0.00038356,6]
[327615641,1716253835663,-721.74,0.00038356,6]
[327615642,1716253835672,-529.85,0.00038356,6]
[327615643,1716253835682,-500.0,0.00038356,6]
[327615644,1716253835691,-500.0,0.00038356,6]
[327615645,1716253835706,-500.0,0.00038356,6]
[327615646,1716253835715,-500.0,0.00038356,6]
[327615647,1716253835725,-588.27725419,0.00038356,6]
[327615648,1716253835735,-500.0,0.00038356,6]
[327615649,1716253835746,-500.0,0.00038356,6]
[327615650,1716253835756,-500.0,0.00038356,6]
[327615651,1716253835766,-500.0,0.00038356,6]
[327615652,1716253835775,-285.71781283,0.00038356,6]
[327615653,1716253835784,-1197.69,0.00038356,6]
[327615654,1716253835794,-500.0,0.00038356,6]
[327615655,1716253835803,-500.0,0.00038356,6]
[327615656,1716253835813,-500.0,0.00038356,6]
[327615657,1716253835822,-1190.48,0.00038356,6]
[327615658,1716253835831,-500.0,0.00038356,6]
[327615659,1716253835841,-1828.03,0.00038356,6]
[327615660,1716253835851,-500.0,0.00038356,6]
[327615661,1716253835860,-500.0,0.00038356,6]
[327615662,1716253835870,-1054.6,0.00038356,6]
[327615663,1716253835879,-500.0,0.00038356,6]
[327615664,1716253835889,-500.0,0.00038356,6]
[327615665,1716253835898,-500.0,0.00038356,6]
[327615666,1716253835911,-500.0,0.00038356,6]
[327615667,1716253835920,-575.98,0.00038356,6]
[327615668,1716253835929,-536.78503012,0.00038356,6]
[327615669,1716253835938,-1567.69,0.00038356,6]
[327615670,1716253835946,-500.0,0.00038356,6]
[327615671,1716253835956,-500.0,0.00038356,6]
[327615672,1716253835965,-500.0,0.00038356,6]
[327615673,1716253835974,-500.0,0.00038356,6]
[327615674,1716253835983,-311.36648287,0.00038356,6]
[327615675,1716253835992,-503.48257653,0.00038356,6]
[327615676,1716253836002,-500.0,0.00038356,6]